[Event "Early-Titled-Tuesday-Blitz-January-30-2024"]
[Site "Chess.com"]
[Date "2024.01.30"]
[Round "5"]
[White "SirGerhard"]
[Black "RichardLeyvaP"]
[Result "0-1"]
[WhiteElo "2757"]
[BlackElo "2534"]
[TimeControl "180+1"]
[EndTime "8:57:35 PST"]
[Termination "RichardLeyvaP won by resignation"]

1. d4 {[%clk 0:02:59.4]} 1... Nf6 {[%clk 0:02:56.6]} 2. c4 {[%clk 0:02:58.8]}
2... g6 {[%clk 0:02:56.7]} 3. Nc3 {[%clk 0:02:58.5]} 3... Bg7 {[%clk 0:02:57.1]}
4. e4 {[%clk 0:02:59]} 4... d6 {[%clk 0:02:57.5]} 5. f3 {[%clk 0:02:59.5]} 5...
O-O {[%clk 0:02:56.7]} 6. Bg5 {[%clk 0:02:59.5]} 6... h6 {[%clk 0:02:51.5]} 7.
Be3 {[%clk 0:02:59.4]} 7... Nc6 {[%clk 0:02:48.6]} 8. Nge2 {[%clk 0:02:50.7]}
8... a6 {[%clk 0:02:48]} 9. Qd2 {[%clk 0:02:50.2]} 9... h5 {[%clk 0:02:48]} 10.
g3 {[%clk 0:02:38.7]} 10... Rb8 {[%clk 0:02:46.5]} 11. Bg2 {[%clk 0:02:33]}
11... b5 {[%clk 0:02:44.7]} 12. cxb5 {[%clk 0:02:33.1]} 12... axb5 {[%clk
0:02:44.6]} 13. O-O {[%clk 0:02:34]} 13... b4 {[%clk 0:02:39.3]} 14. Na4 {[%clk
0:02:27.9]} 14... Ba6 {[%clk 0:02:37.8]} 15. Rfc1 {[%clk 0:02:26.6]} 15... Bb5
{[%clk 0:02:37.6]} 16. b3 {[%clk 0:02:26.4]} 16... e6 {[%clk 0:02:24.5]} 17. Nb2
{[%clk 0:02:25.4]} 17... Nd7 {[%clk 0:02:18.3]} 18. Rc2 {[%clk 0:02:00.9]} 18...
Bxe2 {[%clk 0:02:11.5]} 19. Rxc6 {[%clk 0:02:00.3]} 19... Bb5 {[%clk 0:02:11.7]}
20. Rc2 {[%clk 0:01:57.4]} 20... c5 {[%clk 0:02:11.9]} 21. dxc5 {[%clk
0:01:46.6]} 21... dxc5 {[%clk 0:02:05.2]} 22. Rd1 {[%clk 0:01:44.8]} 22... Qa5
{[%clk 0:01:58.4]} 23. Nc4 {[%clk 0:01:42.1]} 23... Qa6 {[%clk 0:01:53.2]} 24.
Qd6 {[%clk 0:01:18.1]} 24... Qb7 {[%clk 0:01:05.6]} 25. Bxc5 {[%clk 0:01:06.7]}
25... Nxc5 {[%clk 0:01:00.5]} 26. Qxc5 {[%clk 0:01:07]} 26... Rfc8 {[%clk
0:00:58.5]} 27. Qxb4 {[%clk 0:01:04.3]} 27... Qa7+ {[%clk 0:00:56.7]} 28. Kh1
{[%clk 0:00:53.6]} 28... Bxc4 {[%clk 0:00:57]} 29. Qd2 {[%clk 0:00:46.5]} 29...
Bb5 {[%clk 0:00:56]} 30. Rdc1 {[%clk 0:00:44]} 30... Rd8 {[%clk 0:00:54.9]} 31.
Qf4 {[%clk 0:00:40.6]} 31... Be8 {[%clk 0:00:50.1]} 32. h4 {[%clk 0:00:39.9]}
32... Qd4 {[%clk 0:00:47.5]} 33. g4 {[%clk 0:00:36.8]} 33... Be5 {[%clk
0:00:47.1]} 34. Qg5 {[%clk 0:00:36.4]} 34... Bf6 {[%clk 0:00:47.1]} 35. Qf4
{[%clk 0:00:35.4]} 35... hxg4 {[%clk 0:00:45.3]} 36. Qxg4 {[%clk 0:00:35.3]}
36... Kg7 {[%clk 0:00:41]} 37. f4 {[%clk 0:00:33.6]} 37... Bb5 {[%clk
0:00:35.8]} 38. Rc7 {[%clk 0:00:17.2]} 38... Rh8 {[%clk 0:00:33.6]} 39. Qxe6
{[%clk 0:00:17.4]} 39... Rxh4+ {[%clk 0:00:33.4]} 40. Bh3 {[%clk 0:00:17.9]}
40... Rxh3+ {[%clk 0:00:32.9]} 41. Qxh3 {[%clk 0:00:18]} 41... Qxe4+ {[%clk
0:00:33.3]} 42. Qg2 {[%clk 0:00:16.9]} 42... Rh8+ {[%clk 0:00:32.6]} 43. Kg1
{[%clk 0:00:17.1]} 43... Bd4+ {[%clk 0:00:32.8]} 0-1

[Event "Early-Titled-Tuesday-Blitz-January-30-2024"]
[Site "Chess.com"]
[Date "2024.01.30"]
[Round "5"]
[White "Susal_De_Silva"]
[Black "aistrel"]
[Result "1-0"]
[WhiteElo "2749"]
[BlackElo "2510"]
[TimeControl "180+1"]
[EndTime "8:57:35 PST"]
[Termination "Susal_De_Silva won on time"]

1. Nf3 {[%clk 0:02:57]} 1... d5 {[%clk 0:02:59.8]} 2. e3 {[%clk 0:02:56.9]} 2...
Bf5 {[%clk 0:02:58.7]} 3. c4 {[%clk 0:02:56.3]} 3... e6 {[%clk 0:02:36.8]} 4.
Nc3 {[%clk 0:02:51.8]} 4... c6 {[%clk 0:02:35.9]} 5. cxd5 {[%clk 0:02:52.1]}
5... exd5 {[%clk 0:02:34.2]} 6. d4 {[%clk 0:02:52.5]} 6... Nd7 {[%clk
0:02:32.7]} 7. Bd3 {[%clk 0:02:52.4]} 7... Bg6 {[%clk 0:02:31.8]} 8. O-O {[%clk
0:02:52.1]} 8... Ngf6 {[%clk 0:02:31.9]} 9. a3 {[%clk 0:02:46]} 9... a5 {[%clk
0:02:30.2]} 10. Rb1 {[%clk 0:02:44.1]} 10... Bd6 {[%clk 0:02:27.6]} 11. b4
{[%clk 0:02:43.2]} 11... axb4 {[%clk 0:02:28.5]} 12. axb4 {[%clk 0:02:44]} 12...
b5 {[%clk 0:02:29.1]} 13. Ne2 {[%clk 0:02:39]} 13... O-O {[%clk 0:02:27.8]} 14.
Bxg6 {[%clk 0:02:38.1]} 14... hxg6 {[%clk 0:02:26.7]} 15. Ne1 {[%clk 0:02:37.9]}
15... Nb6 {[%clk 0:02:26.6]} 16. h3 {[%clk 0:02:35.8]} 16... Nc4 {[%clk
0:02:26.8]} 17. Nd3 {[%clk 0:02:35.8]} 17... Ne4 {[%clk 0:02:25.1]} 18. Qc2
{[%clk 0:02:14.9]} 18... Bc7 {[%clk 0:02:20.3]} 19. f3 {[%clk 0:02:12.2]} 19...
Nf6 {[%clk 0:02:14.5]} 20. Nc5 {[%clk 0:02:07]} 20... Re8 {[%clk 0:02:14]} 21.
e4 {[%clk 0:02:06.5]} 21... dxe4 {[%clk 0:01:53.5]} 22. fxe4 {[%clk 0:02:07.4]}
22... Qe7 {[%clk 0:01:53.5]} 23. Bg5 {[%clk 0:02:05.7]} 23... Na3 {[%clk
0:01:49.4]} 24. Qd3 {[%clk 0:02:03.8]} 24... Nxb1 {[%clk 0:01:49.1]} 25. Qxb1
{[%clk 0:01:56.6]} 25... Qf8 {[%clk 0:01:31.2]} 26. Bxf6 {[%clk 0:01:50.6]}
26... gxf6 {[%clk 0:01:31.7]} 27. Nd7 {[%clk 0:01:50.6]} 27... Qe7 {[%clk
0:00:56.6]} 28. Nxf6+ {[%clk 0:01:50.7]} 28... Kg7 {[%clk 0:00:57.5]} 29. Nxe8+
{[%clk 0:01:40.9]} 29... Qxe8 {[%clk 0:00:56.1]} 30. e5 {[%clk 0:01:41.8]} 30...
Qe6 {[%clk 0:00:55.7]} 31. Qe4 {[%clk 0:01:37.7]} 31... Bb6 {[%clk 0:00:55.2]}
32. Rf6 {[%clk 0:01:36.3]} 32... Ra1+ {[%clk 0:00:41.5]} 33. Kh2 {[%clk
0:01:34.5]} 33... Qa2 {[%clk 0:00:35.9]} 34. Rxc6 {[%clk 0:01:20.7]} 34... Re1
{[%clk 0:00:36.3]} 35. Rxb6 {[%clk 0:01:15.6]} 35... Rxe2 {[%clk 0:00:26.1]} 36.
Qf3 {[%clk 0:01:15.4]} 36... Rf2 {[%clk 0:00:26.6]} 37. Qg3 {[%clk 0:01:11.3]}
37... Qd2 {[%clk 0:00:21.3]} 38. Rf6 {[%clk 0:00:57.2]} 38... Re2 {[%clk
0:00:13.1]} 39. Qf3 {[%clk 0:00:51]} 39... Qa2 {[%clk 0:00:05]} 40. d5 {[%clk
0:00:46.9]} 1-0

[Event "Early-Titled-Tuesday-Blitz-January-30-2024"]
[Site "Chess.com"]
[Date "2024.01.30"]
[Round "5"]
[White "secretsuperstar7"]
[Black "Evgeny81"]
[Result "1-0"]
[WhiteElo "2521"]
[BlackElo "2719"]
[TimeControl "180+1"]
[EndTime "8:57:35 PST"]
[Termination "secretsuperstar7 won by resignation"]

1. c4 {[%clk 0:02:52.8]} 1... c5 {[%clk 0:03:00.9]} 2. Nc3 {[%clk 0:02:52.2]}
2... Nc6 {[%clk 0:03:00.4]} 3. Nf3 {[%clk 0:02:48.6]} 3... g6 {[%clk 0:02:58]}
4. g3 {[%clk 0:02:48.7]} 4... Bg7 {[%clk 0:02:57.9]} 5. Bg2 {[%clk 0:02:49]}
5... d6 {[%clk 0:02:56.9]} 6. O-O {[%clk 0:02:49.3]} 6... Bg4 {[%clk 0:02:56.9]}
7. a3 {[%clk 0:02:43.4]} 7... a5 {[%clk 0:02:54.4]} 8. Rb1 {[%clk 0:02:42.8]}
8... Nf6 {[%clk 0:02:51.4]} 9. Nd5 {[%clk 0:02:37.8]} 9... O-O {[%clk
0:02:49.6]} 10. d3 {[%clk 0:02:32.2]} 10... Nxd5 {[%clk 0:02:43.4]} 11. cxd5
{[%clk 0:02:32]} 11... Nd4 {[%clk 0:02:44.3]} 12. Nxd4 {[%clk 0:02:29.1]} 12...
Bxd4 {[%clk 0:02:45.2]} 13. Bh6 {[%clk 0:02:24.7]} 13... Re8 {[%clk 0:02:42.9]}
14. h3 {[%clk 0:02:08.2]} 14... Bf5 {[%clk 0:02:37.4]} 15. e3 {[%clk 0:01:59.9]}
15... Bf6 {[%clk 0:02:36.7]} 16. h4 {[%clk 0:01:47.3]} 16... a4 {[%clk
0:02:29.2]} 17. h5 {[%clk 0:01:37.7]} 17... b5 {[%clk 0:02:24.9]} 18. e4 {[%clk
0:01:27]} 18... Bd7 {[%clk 0:02:23.7]} 19. f4 {[%clk 0:01:24.1]} 19... Bd4+
{[%clk 0:02:19.4]} 20. Kh2 {[%clk 0:01:24.2]} 20... e6 {[%clk 0:02:11.6]} 21.
dxe6 {[%clk 0:01:22]} 21... Bxe6 {[%clk 0:02:10.8]} 22. f5 {[%clk 0:01:18.6]}
22... Bd7 {[%clk 0:01:52.7]} 23. e5 {[%clk 0:00:50.6]} 23... Rxe5 {[%clk
0:01:44.8]} 24. Bxa8 {[%clk 0:00:42.6]} 24... Qxa8 {[%clk 0:01:45.7]} 25. fxg6
{[%clk 0:00:42.2]} 25... hxg6 {[%clk 0:01:41.6]} 26. hxg6 {[%clk 0:00:37.5]}
26... f5 {[%clk 0:01:10.4]} 27. Qh5 {[%clk 0:00:35.1]} 27... Qe8 {[%clk
0:01:06.6]} 28. Bf4 {[%clk 0:00:11.5]} 28... Re2+ {[%clk 0:00:48.7]} 29. Kh3
{[%clk 0:00:11.9]} 29... Re7 {[%clk 0:00:47.9]} 30. Rbe1 {[%clk 0:00:11.3]}
30... Bg7 {[%clk 0:00:39.9]} 31. Qh7+ {[%clk 0:00:10.5]} 31... Kf8 {[%clk
0:00:39.9]} 32. Bh6 {[%clk 0:00:10.5]} 32... f4+ {[%clk 0:00:38.9]} 33. Kh4
{[%clk 0:00:06.1]} 33... Be6 {[%clk 0:00:24.5]} 34. Qh8+ {[%clk 0:00:06.1]}
34... Bg8 {[%clk 0:00:24.5]} 35. Bxg7+ {[%clk 0:00:06.4]} 35... Rxg7 {[%clk
0:00:24.3]} 36. Rxe8+ {[%clk 0:00:06.7]} 36... Kxe8 {[%clk 0:00:24.6]} 37. Qxg7
{[%clk 0:00:07.1]} 1-0

[Event "Early-Titled-Tuesday-Blitz-January-30-2024"]
[Site "Chess.com"]
[Date "2024.01.30"]
[Round "5"]
[White "Mesa_1"]
[Black "jamengrand"]
[Result "1-0"]
[WhiteElo "2563"]
[BlackElo "2255"]
[TimeControl "180+1"]
[EndTime "8:57:35 PST"]
[Termination "Mesa_1 won on time"]

1. d4 {[%clk 0:03:00.9]} 1... d5 {[%clk 0:02:58.1]} 2. c4 {[%clk 0:03:01.2]}
2... e6 {[%clk 0:02:58.2]} 3. Nf3 {[%clk 0:03:01.7]} 3... Nf6 {[%clk 0:02:58.3]}
4. Nc3 {[%clk 0:03:02.4]} 4... c5 {[%clk 0:02:58.2]} 5. cxd5 {[%clk 0:03:01.9]}
5... Nxd5 {[%clk 0:02:59.1]} 6. e4 {[%clk 0:03:01.9]} 6... Nxc3 {[%clk
0:02:59.3]} 7. bxc3 {[%clk 0:03:02.8]} 7... cxd4 {[%clk 0:02:59.9]} 8. cxd4
{[%clk 0:03:03.3]} 8... Bb4+ {[%clk 0:03:00.6]} 9. Bd2 {[%clk 0:03:04]} 9...
Bxd2+ {[%clk 0:03:01.3]} 10. Qxd2 {[%clk 0:03:04.9]} 10... O-O {[%clk
0:03:01.4]} 11. Bc4 {[%clk 0:03:04]} 11... Nd7 {[%clk 0:03:01.7]} 12. O-O {[%clk
0:03:04.2]} 12... b6 {[%clk 0:03:02.1]} 13. Rad1 {[%clk 0:03:03.2]} 13... Bb7
{[%clk 0:03:01.7]} 14. Rfe1 {[%clk 0:03:03.9]} 14... Rc8 {[%clk 0:03:01.2]} 15.
Bb3 {[%clk 0:03:04.4]} 15... h6 {[%clk 0:03:01.4]} 16. h3 {[%clk 0:03:04.2]}
16... Re8 {[%clk 0:02:59.7]} 17. Re3 {[%clk 0:02:59.4]} 17... Qf6 {[%clk
0:02:32]} 18. Qe1 {[%clk 0:02:37.2]} 18... e5 {[%clk 0:02:19.1]} 19. Ba4 {[%clk
0:02:33.5]} 19... exd4 {[%clk 0:02:15.9]} 20. Nxd4 {[%clk 0:02:23.5]} 20... Red8
{[%clk 0:02:10.1]} 21. Rf3 {[%clk 0:02:14.9]} 21... Qe5 {[%clk 0:01:35.1]} 22.
Bb3 {[%clk 0:01:35.4]} 22... Rf8 {[%clk 0:01:27.4]} 23. Ne6 {[%clk 0:00:56]}
23... fxe6 {[%clk 0:01:07.6]} 24. Rxd7 {[%clk 0:00:56.5]} 24... Rxf3 {[%clk
0:00:20.1]} 25. gxf3 {[%clk 0:00:55.3]} 25... Qg5+ {[%clk 0:00:18.8]} 26. Kh1
{[%clk 0:00:50.7]} 26... Rc1 {[%clk 0:00:18.9]} 27. Bxe6+ {[%clk 0:00:45.3]}
27... Kh8 {[%clk 0:00:15.3]} 28. Rd8+ {[%clk 0:00:29.8]} 28... Qxd8 {[%clk
0:00:07.3]} 29. Qxc1 {[%clk 0:00:29.1]} 29... Qd3 {[%clk 0:00:07]} 30. Kg2
{[%clk 0:00:21.2]} 30... Qd6 {[%clk 0:00:01.3]} 31. Bf5 {[%clk 0:00:15.6]} 1-0

[Event "Early-Titled-Tuesday-Blitz-January-30-2024"]
[Site "Chess.com"]
[Date "2024.01.30"]
[Round "5"]
[White "DenLaz"]
[Black "GeorgiosSouleidis"]
[Result "1-0"]
[WhiteElo "3060"]
[BlackElo "2650"]
[TimeControl "180+1"]
[EndTime "8:57:37 PST"]
[Termination "DenLaz won by resignation"]

1. d4 {[%clk 0:03:00.9]} 1... Nf6 {[%clk 0:02:55.5]} 2. c4 {[%clk 0:03:01.5]}
2... g6 {[%clk 0:02:56]} 3. g3 {[%clk 0:03:01.7]} 3... Bg7 {[%clk 0:02:56.8]} 4.
Bg2 {[%clk 0:03:02.4]} 4... O-O {[%clk 0:02:57.6]} 5. Nc3 {[%clk 0:03:03.1]}
5... d6 {[%clk 0:02:58.2]} 6. Nf3 {[%clk 0:03:03.8]} 6... Nc6 {[%clk 0:02:58.8]}
7. O-O {[%clk 0:03:01.2]} 7... e5 {[%clk 0:02:59.1]} 8. d5 {[%clk 0:03:00.8]}
8... Nb8 {[%clk 0:02:59.3]} 9. e4 {[%clk 0:03:00.9]} 9... a5 {[%clk 0:02:59.7]}
10. b3 {[%clk 0:02:53.9]} 10... Na6 {[%clk 0:03:00]} 11. Rb1 {[%clk 0:02:53.5]}
11... Nc5 {[%clk 0:03:00.2]} 12. Re1 {[%clk 0:02:54]} 12... Ne8 {[%clk
0:02:56.7]} 13. a3 {[%clk 0:02:51]} 13... f5 {[%clk 0:02:56.3]} 14. b4 {[%clk
0:02:33.5]} 14... axb4 {[%clk 0:02:55.8]} 15. axb4 {[%clk 0:02:34.4]} 15... Nxe4
{[%clk 0:02:55.8]} 16. Nxe4 {[%clk 0:02:34.2]} 16... fxe4 {[%clk 0:02:56.6]} 17.
Ng5 {[%clk 0:02:34.3]} 17... Nf6 {[%clk 0:02:52.7]} 18. Nxe4 {[%clk 0:02:34]}
18... Nxe4 {[%clk 0:02:48.9]} 19. Bxe4 {[%clk 0:02:34.9]} 19... Ra2 {[%clk
0:02:35.5]} 20. Be3 {[%clk 0:02:30.4]} 20... Qf6 {[%clk 0:02:19.8]} 21. Qb3
{[%clk 0:02:21.3]} 21... Ra8 {[%clk 0:01:50.2]} 22. Ra1 {[%clk 0:02:19.8]} 22...
Bh3 {[%clk 0:01:45.9]} 23. Rxa8 {[%clk 0:02:10.8]} 23... Rxa8 {[%clk 0:01:46.8]}
24. c5 {[%clk 0:02:09.8]} 24... h5 {[%clk 0:01:41.6]} 25. b5 {[%clk 0:02:07.3]}
25... Kh7 {[%clk 0:00:46.4]} 26. b6 {[%clk 0:02:05.5]} 26... cxb6 {[%clk
0:00:46.3]} 27. Qxb6 {[%clk 0:02:03.7]} 27... dxc5 {[%clk 0:00:45.7]} 28. Qxb7
{[%clk 0:02:00.3]} 28... Rc8 {[%clk 0:00:35.6]} 29. Ra1 {[%clk 0:01:55.4]} 29...
c4 {[%clk 0:00:25.6]} 30. Ra6 {[%clk 0:01:23.7]} 30... Rb8 {[%clk 0:00:21.8]}
31. Rxf6 {[%clk 0:01:19.5]} 31... Rxb7 {[%clk 0:00:21.7]} 32. Rxg6 {[%clk
0:01:20.1]} 32... Kh8 {[%clk 0:00:17.4]} 33. Rg5 {[%clk 0:01:14.7]} 33... Bd7
{[%clk 0:00:10.7]} 34. Rxh5+ {[%clk 0:01:11.8]} 34... Kg8 {[%clk 0:00:10.7]} 35.
d6 {[%clk 0:01:08.3]} 35... Rb5 {[%clk 0:00:10.3]} 36. Bh6 {[%clk 0:00:43.5]}
36... c3 {[%clk 0:00:07.8]} 37. Rg5 {[%clk 0:00:41.3]} 37... Kf7 {[%clk
0:00:05.1]} 38. Rxg7+ {[%clk 0:00:41]} 38... Ke6 {[%clk 0:00:05.6]} 39. Bf5+
{[%clk 0:00:38.4]} 39... Kxf5 {[%clk 0:00:05.1]} 40. Rxd7 {[%clk 0:00:39.3]}
40... Ke6 {[%clk 0:00:04.8]} 41. Rc7 {[%clk 0:00:39.2]} 41... Rb3 {[%clk
0:00:04.1]} 42. d7 {[%clk 0:00:39.1]} 1-0

[Event "Early-Titled-Tuesday-Blitz-January-30-2024"]
[Site "Chess.com"]
[Date "2024.01.30"]
[Round "5"]
[White "sofaceindisguise"]
[Black "biostatistician"]
[Result "1-0"]
[WhiteElo "2786"]
[BlackElo "2562"]
[TimeControl "180+1"]
[EndTime "8:57:38 PST"]
[Termination "sofaceindisguise won by resignation"]

1. c4 {[%clk 0:02:58]} 1... Nf6 {[%clk 0:02:59.4]} 2. Nc3 {[%clk 0:02:58]} 2...
g6 {[%clk 0:02:58.7]} 3. g3 {[%clk 0:02:57.8]} 3... Bg7 {[%clk 0:02:58.7]} 4.
Bg2 {[%clk 0:02:58.3]} 4... O-O {[%clk 0:02:59.6]} 5. e4 {[%clk 0:02:58.7]} 5...
c5 {[%clk 0:02:59.2]} 6. Nge2 {[%clk 0:02:58.9]} 6... Nc6 {[%clk 0:02:59.6]} 7.
O-O {[%clk 0:02:59]} 7... d6 {[%clk 0:02:59.8]} 8. d3 {[%clk 0:02:59.2]} 8...
Bg4 {[%clk 0:02:59.7]} 9. h3 {[%clk 0:02:56.7]} 9... Bd7 {[%clk 0:02:59.8]} 10.
Be3 {[%clk 0:02:56.7]} 10... a6 {[%clk 0:02:33.1]} 11. a4 {[%clk 0:02:54.4]}
11... Rb8 {[%clk 0:02:26.4]} 12. Rb1 {[%clk 0:02:53.1]} 12... Ne8 {[%clk
0:02:22.4]} 13. d4 {[%clk 0:02:51.3]} 13... cxd4 {[%clk 0:02:21]} 14. Nxd4
{[%clk 0:02:51.7]} 14... Nc7 {[%clk 0:02:18.7]} 15. Kh2 {[%clk 0:02:42.2]} 15...
Ne6 {[%clk 0:02:13.9]} 16. Nxe6 {[%clk 0:02:41.3]} 16... Bxe6 {[%clk 0:02:13.6]}
17. Nd5 {[%clk 0:02:41.2]} 17... b5 {[%clk 0:01:55.1]} 18. cxb5 {[%clk
0:02:34.5]} 18... axb5 {[%clk 0:01:56]} 19. b4 {[%clk 0:02:34.7]} 19... Ne5
{[%clk 0:01:35.4]} 20. a5 {[%clk 0:02:25.9]} 20... Nc4 {[%clk 0:01:35.1]} 21.
Bd4 {[%clk 0:02:21.2]} 21... Bxd5 {[%clk 0:01:08]} 22. exd5 {[%clk 0:02:14.7]}
22... Qd7 {[%clk 0:01:06.6]} 23. Bxg7 {[%clk 0:02:13.6]} 23... Kxg7 {[%clk
0:01:06.6]} 24. Qd4+ {[%clk 0:02:14.3]} 24... Kg8 {[%clk 0:01:03.8]} 25. Rfe1
{[%clk 0:02:14]} 25... Rfe8 {[%clk 0:00:50.5]} 26. Rb3 {[%clk 0:02:08.3]} 26...
Qf5 {[%clk 0:00:49.1]} 27. Rf3 {[%clk 0:01:57.7]} 27... Qc2 {[%clk 0:00:44.4]}
28. Bf1 {[%clk 0:01:33.2]} 28... Qb2 {[%clk 0:00:40.5]} 29. Qxb2 {[%clk
0:01:33]} 29... Nxb2 {[%clk 0:00:41.4]} 30. Rc3 {[%clk 0:01:31.4]} 30... Rec8
{[%clk 0:00:38.1]} 31. Rxc8+ {[%clk 0:01:31.1]} 31... Rxc8 {[%clk 0:00:39]} 32.
Bxb5 {[%clk 0:01:30.5]} 32... Rb8 {[%clk 0:00:34.1]} 33. Bc6 {[%clk 0:01:30.9]}
33... Nd3 {[%clk 0:00:31]} 34. a6 {[%clk 0:01:15]} 34... Nxe1 {[%clk 0:00:25.5]}
35. a7 {[%clk 0:01:15.3]} 35... Rd8 {[%clk 0:00:22.8]} 36. b5 {[%clk 0:01:15.8]}
36... Nd3 {[%clk 0:00:02.9]} 37. b6 {[%clk 0:01:16.1]} 37... Nc5 {[%clk
0:00:02.7]} 38. b7 {[%clk 0:01:16.5]} 38... Nxb7 {[%clk 0:00:02.4]} 39. Bxb7
{[%clk 0:01:17.4]} 39... f5 {[%clk 0:00:01.3]} 40. f4 {[%clk 0:01:16.1]} 40...
Kg7 {[%clk 0:00:01.2]} 41. a8=Q {[%clk 0:01:16.1]} 41... Rxa8 {[%clk 0:00:01.6]}
42. Bxa8 {[%clk 0:01:17]} 42... Kf6 {[%clk 0:00:01.8]} 43. Kg2 {[%clk
0:01:17.5]} 43... Kf7 {[%clk 0:00:02.2]} 44. Kf3 {[%clk 0:01:17.9]} 44... Kf6
{[%clk 0:00:03.1]} 45. Ke3 {[%clk 0:01:18.3]} 45... Kf7 {[%clk 0:00:03.6]} 46.
Kd4 {[%clk 0:01:18.8]} 46... Kf6 {[%clk 0:00:04.5]} 47. Bc6 {[%clk 0:01:18.7]}
47... h6 {[%clk 0:00:05.4]} 48. Bd7 {[%clk 0:01:19.1]} 48... Kf7 {[%clk
0:00:05.3]} 49. Be6+ {[%clk 0:01:19.5]} 49... Kf6 {[%clk 0:00:05.8]} 50. Kc4
{[%clk 0:01:19.3]} 50... g5 {[%clk 0:00:06.1]} 51. Kb5 {[%clk 0:01:19.2]} 51...
h5 {[%clk 0:00:06.4]} 52. h4 {[%clk 0:01:18.2]} 52... gxh4 {[%clk 0:00:04.3]}
53. gxh4 {[%clk 0:01:18.5]} 53... Kg6 {[%clk 0:00:04.7]} 54. Kc6 {[%clk
0:01:19]} 54... Kf6 {[%clk 0:00:05.3]} 55. Kd7 {[%clk 0:01:19.7]} 55... Kg6
{[%clk 0:00:05.4]} 56. Kxe7 {[%clk 0:01:20.4]} 56... Kh6 {[%clk 0:00:05.9]} 57.
Kxd6 {[%clk 0:01:21.2]} 1-0

[Event "Early-Titled-Tuesday-Blitz-January-30-2024"]
[Site "Chess.com"]
[Date "2024.01.30"]
[Round "5"]
[White "xakevicius91"]
[Black "Zurability"]
[Result "1-0"]
[WhiteElo "2580"]
[BlackElo "2767"]
[TimeControl "180+1"]
[EndTime "8:57:39 PST"]
[Termination "xakevicius91 won on time"]

1. e4 {[%clk 0:02:59.4]} 1... e5 {[%clk 0:02:55.1]} 2. Nf3 {[%clk 0:02:59.2]}
2... Nc6 {[%clk 0:02:55]} 3. d4 {[%clk 0:02:59.3]} 3... exd4 {[%clk 0:02:55.2]}
4. Nxd4 {[%clk 0:03:00.2]} 4... Nf6 {[%clk 0:02:54.8]} 5. Nxc6 {[%clk
0:02:59.3]} 5... bxc6 {[%clk 0:02:55.7]} 6. Qe2 {[%clk 0:02:59.6]} 6... a5
{[%clk 0:02:32.6]} 7. Nc3 {[%clk 0:02:59.1]} 7... Bb4 {[%clk 0:02:25.8]} 8. Bd2
{[%clk 0:02:38.7]} 8... O-O {[%clk 0:02:16.3]} 9. f3 {[%clk 0:02:32.3]} 9... Re8
{[%clk 0:01:53.4]} 10. a3 {[%clk 0:02:32.4]} 10... Bc5 {[%clk 0:01:49.2]} 11.
O-O-O {[%clk 0:02:29.2]} 11... d5 {[%clk 0:01:40.5]} 12. e5 {[%clk 0:02:28]}
12... Bd4 {[%clk 0:01:26.4]} 13. f4 {[%clk 0:02:20]} 13... Bg4 {[%clk
0:01:13.9]} 14. Qd3 {[%clk 0:02:20.1]} 14... Bxc3 {[%clk 0:01:11.1]} 15. Bxc3
{[%clk 0:02:18.2]} 15... Ne4 {[%clk 0:01:11.5]} 16. Re1 {[%clk 0:02:07.6]} 16...
Rb8 {[%clk 0:00:48.2]} 17. h3 {[%clk 0:01:36.8]} 17... Be6 {[%clk 0:00:45.7]}
18. g4 {[%clk 0:01:30.1]} 18... Nf2 {[%clk 0:00:38.5]} 19. Qf3 {[%clk
0:01:30.4]} 19... Nxh1 {[%clk 0:00:38.5]} 20. Qxh1 {[%clk 0:01:31.3]} 20... d4
{[%clk 0:00:36.5]} 21. Bxa5 {[%clk 0:01:26.4]} 21... Bd5 {[%clk 0:00:21.3]} 22.
Bg2 {[%clk 0:01:19.5]} 22... Bxg2 {[%clk 0:00:20.6]} 23. Qxg2 {[%clk 0:01:20.4]}
23... Rb5 {[%clk 0:00:20.5]} 24. Bd2 {[%clk 0:01:18]} 24... d3 {[%clk
0:00:17.7]} 25. Bc3 {[%clk 0:01:12.3]} 25... dxc2 {[%clk 0:00:17.4]} 26. Qxc2
{[%clk 0:01:12.4]} 26... Rd5 {[%clk 0:00:18]} 27. f5 {[%clk 0:01:10.4]} 27...
Qg5+ {[%clk 0:00:15.3]} 28. Kb1 {[%clk 0:01:10.4]} 28... Qh4 {[%clk 0:00:15.2]}
29. e6 {[%clk 0:01:03.3]} 29... fxe6 {[%clk 0:00:12.4]} 30. fxe6 {[%clk
0:01:04.2]} 30... Qxh3 {[%clk 0:00:11.1]} 31. Qf2 {[%clk 0:00:51]} 31... Qd3+
{[%clk 0:00:07.2]} 32. Ka1 {[%clk 0:00:51.3]} 32... Qg6 {[%clk 0:00:07.9]} 33.
Qe2 {[%clk 0:00:41.6]} 33... h6 {[%clk 0:00:03.1]} 34. e7 {[%clk 0:00:38.3]}
34... Qf7 {[%clk 0:00:01.6]} 35. Qe4 {[%clk 0:00:34.5]} 35... Rxe7 {[%clk
0:00:01.5]} 36. Qh1 {[%clk 0:00:18.8]} 1-0